Cogmind - Beta 17.1 @@@ ROGUE MODE // 2026.09.10 @ 18:33:48 Player: Ethranok Result: Destroyed by S-10 Pest with Light Assault Rifle Performance ------------- Evolutions (2) 1000 Regions Visited (3) 600 Robots Destroyed (51) 255 Value Destroyed (1360) 1360 Prototype IDs (2) 40 Alien Tech Used (0) 0 Bonus (8) 8 TOTAL SCORE: 3263 Bonus ------- High Alert Combat Kills 35 Friendly Fire -27 Cogmind --------- Core Integrity 0/550 Matter 288/300 Energy 100/100 System Corruption 0% Temperature Cool (9) Movement Core (100) Ox1 Location -8/Materials Parts ------- > --- POWER (1) -------- (None) > --- PROPULSION (2) --- (None) > --- UTILITY (6) ------ Small Storage Unit Improved Targeting Computer > --- WEAPON (2) ------- (None) > --- INVENTORY (8) ---- Light Nuclear Core High-capacity Matter Pod (200) Weight Redist. System Structural Scanner Signal Interpreter Terrain Scanner Hardlight Generator Peak State ------------ > --- POWER ------------ Subdweller Power Source > --- PROPULSION ------- Myomer Leg Myomer Leg > --- UTILITY ---------- Small Storage Unit Structural Scanner Terrain Scanner Armor Integrity Analyzer Phase Shifter Core Shielding > --- WEAPON ----------- Beam Cannon Particle Cannon > --- INVENTORY -------- High-capacity Matter Pod Weight Redist. System Subdweller Optics Signal Interpreter Hacking Suite Beam Cannon [Rating: 33] Favorites ----------- Power Ion Engine Engine Ion Engine Power Core Light Nuclear Core Propulsion Light Treads Treads Light Treads Leg Myomer Leg Utility Small Storage Unit Device Heat Sink Storage Small Storage Unit Processor Armor Integrity Analyzer Hackware Hacking Suite Protection Core Shielding Weapon Beam Cannon Energy Gun Heavy EM Shotgun Energy Cannon Beam Cannon Ballistic Gun Light Assault Rifle Launcher Grenade Launcher Build | -11 -10 -10 -8 ------- Run | Yrd Mat Sub Mat Slots Evolved 4 | . . . 4 Power . | . . . . Propulsion . | . . . . Utility 4 | . . . 4 Weapon . | . . . . Parts Attached 48 | 6 15 6 21 Power 9 | 1 4 1 3 Engine 8 | 1 4 1 2 Core 1 | . . . 1 Reactor . | . . . . Propulsion 8 | 2 . 2 4 Treads 6 | 2 . . 4 Leg 2 | . . 2 . Wheel . | . . . . Hover . | . . . . Flight . | . . . . Utility 13 | 1 2 1 9 Device 8 | . 2 1 5 Storage 1 | 1 . . . Processor 2 | . . . 2 Hackware 1 | . . . 1 Protection 1 | . . . 1 Artifact . | . . . . Weapon 18 | 2 9 2 5 Energy Gun 3 | 1 . . 2 Energy Cannon 11 | . 7 2 2 Ballistic Gun 3 | 1 1 . 1 Ballistic Cannon . | . . . . Launcher 1 | . 1 . . Special Weapon . | . . . . Impact Weapon . | . . . . Slashing Weapon . | . . . . Piercing Weapon . | . . . . Special Melee Weapon . | . . . . Unidentified Prototypes 2 | . . . 2 Parts Lost 23 | . 2 3 18 Power 5 | . 1 1 3 Propulsion 5 | . 1 1 3 Utility 7 | . . . 7 Weapon 6 | . . 1 5 Highest Loss Streak 10 | . 1 2 10 To Critical Strikes . | . . . . Average Backups 7 | 2 7 7 7 Power . | . . . . Propulsion . | . . . . Utility 3 | . 2 5 4 Weapon 2 | . 3 2 2 Tool/Special . | . . . . Unused Backups 8 | . 3 1 4 Power 3 | . 1 . 2 Propulsion . | . . . . Utility 5 | . 2 1 2 Weapon . | . . . . Tool/Special . | . . . . Average Slot Usage (%) 87 | . 89 80 87 Engine 7 | . 12 8 3 Core 1 | . . . 2 Treads 16 | . 23 2 12 Leg 2 | . . 12 2 Device 14 | . 11 14 18 Storage 11 | . 14 14 9 Processor 3 | . . . 6 Hackware 3 | . . . 7 Protection 3 | . . . 7 Energy Gun 1 | . . . 3 Energy Cannon 15 | . 19 21 10 Ballistic Gun 3 | . 4 . 2 Launcher 2 | . 2 6 . Peak Build Rating 33 | 6 8 25 33 Average Rating 13 | 3 6 13 22 On Entrance 9 | . 6 6 25 Avg Prop Armor Cover (%) 10 | . . . 10 Naked Turns . | . . . . Heaviest Build 23 | 10 17 17 23 Greatest Support 50 | 40 40 50 50 Greatest Overweight (x) 4 | . 2 3 4 Average Overweight (x) . | . . . . Largest Inventory Capacity 8 | 8 8 8 8 Average Capacity 7 | 7 8 8 8 Most Carried 8 | 5 8 8 8 Average Carried 7 | 2 7 7 7 Final Capacity 8 | 8 8 8 8 Final Carried 8 | 2 8 8 7 Class Distribution -------------------- 66% | Mutant 33% | Scavenger-Mutant Dominant Class ---------------- Mutant | -10/Materials Scavenger-Mutant | -10/Subcaves Scavenger-Mutant | -8/Materials Resources | -11 -10 -10 -8 ----------- Run | Yrd Mat Sub Mat Matter Collected 1224 | 212 348 266 398 Remotely . | . . . . Salvage Created 1692 | . 452 86 1154 Parts 102 | . 30 9 63 Haulers Intercepted . | . . . . Recyclers Shooed 3 | . . . 3 Parts Field Recycled . | . . . . Retrieved Matter . | . . . . Parts Self-Destructed . | . . . . Prevented . | . . . . Parts Restored . | . . . . Kills | -11 -10 -10 -8 ------- Run | Yrd Mat Sub Mat Combat Hostiles Destroyed 41 | . 13 2 26 Guns 9 | . 2 . 7 Cannons 24 | . 11 1 12 AOE 8 | . . 1 7 Classes Destroyed 10 | . 4 1 5 Worker 2 | . 1 . 1 Builder 1 | . . . 1 Recycler 1 | . . . 1 Operator 1 | . . . 1 Watcher 5 | . 3 . 2 Swarmer 18 | . 5 . 13 Grunt 18 | . 8 . 10 Sentry 2 | . . . 2 Hunter 1 | . . . 1 Subdweller 2 | . . 2 . Best Kill Streak 9 | . 5 1 9 Combat Bots Only 7 | . 5 1 7 Max Kills in Single Turn 3 | . 2 1 3 Gunslinging . | . . . . Exploded 2 | . . 1 2 Melee . | . . . . Uniques/NPCs Destroyed . | . . . . Combat | -11 -10 -10 -8 -------- Run | Yrd Mat Sub Mat Hostile Shots Fired 281 | . 56 13 212 Missed 65 | . 15 4 46 Hits 216 | . 41 9 166 Projectile 216 | . 41 9 166 Critical Strikes 4 | . . . 4 Actively Blocked 1 | . . . 1 Damage Taken 3336 | . 799 211 2326 Core 744 | . 96 93 555 Absorbed by Shields . | . . . . Redirected to Shielding 51 | . . . 51 Core Remaining (%) 62 | 100 . 24 . Volleys Fired 133 | . 42 5 86 Largest 2 | . 2 2 2 Hottest 128 | . 120 120 128 Shots Fired 239 | . 85 8 146 Gun 90 | . 28 . 62 Cannon 146 | . 56 6 84 Launcher 3 | . 1 2 . Special . | . . . . Kinetic 47 | . 25 . 22 Thermal 164 | . 59 6 99 Explosive 3 | . 1 2 . Electromagnetic 25 | . . . 25 Robot Hit Streak 10 | . 10 7 8 Robot Miss Streak 5 | . 4 . 5 Penetration Max . | . . . . Secondary Targets 1 | . . . 1 Max Gunslinging Chain 1 | . . . 1 Shots Hit Robots 138 | . 45 6 87 Core Hits 76 | . 23 6 47 Critical Kills . | . . . . Critical Parts Destroyed . | . . . . Critical Strikes 1 | . . . 1 Burn 1 | . . . 1 Melee Attacks . | . . . . Impact . | . . . . Slashing . | . . . . Piercing . | . . . . Sneak Attacks . | . . . . Combat Hostiles . | . . . . Follow-up Attacks . | . . . . Damage Inflicted 3202 | . 738 193 2271 Guns 955 | . 141 . 814 Cannons 1541 | . 559 106 876 Explosions 697 | . 36 87 574 Melee . | . . . . Ramming 9 | . 2 . 7 Kinetic 265 | . 131 . 134 Thermal 2269 | . 569 106 1594 Explosive 158 | . 36 87 35 Electromagnetic 501 | . . . 501 Impact . | . . . . Slashing . | . . . . Piercing . | . . . . Highest Corruption 1 | . 1 1 . Average Corruption 1 | . 1 1 . Corruption Purged . | . . . . Corruption Blocked . | . . . . Effects 5 | . 5 . . Message Errors 1 | . 1 . . Data Loss (minor) 2 | . 2 . . Data Loss (major) 1 | . 1 . . Misfires 1 | . 1 . . Overload Shots . | . . . . Overflow Damage 91 | . 32 . 59 Projectiles 20 | . 4 . 16 Explosions 71 | . 28 . 43 Melee . | . . . . Knockbacks . | . . . . Impact . | . . . . Kinetic . | . . . . Secondary . | . . . . Self-Inflicted Damage 490 | . 289 . 201 Shots 8 | . 4 . 4 Rammed 3 | . 1 . 2 Targets Rammed 3 | . 1 . 2 Kicked . | . . . . Crushed . | . . . . Highest Temperature 432 | . 409 . 432 Average Temperature 128 | . 114 . 141 Received Heat Transfer 978 | . 159 18 801 Effects 6 | . 1 . 5 Shutdowns 1 | . . . 1 Energy Bleed 2 | . . . 2 Short Circuit 2 | . 1 . 1 Damage (minor) 1 | . . . 1 Siege Activations . | . . . . Martial Activations . | . . . . Shielding Activations . | . . . . Robots Disrupted . | . . . . Combat Hostiles . | . . . . Robots Corrupted . | . . . . Combat Hostiles . | . . . . Parts Fried 1 | . . . 1 Impact Corruptions . | . . . . Robots Melted . | . . . . Combat Hostiles . | . . . . Parts Melted 5 | . 1 . 4 Heat Transferred 4164 | . 1209 222 2733 Parts Sabotaged . | . . . . Parts Stolen . | . . . . Parts Stripped . | . . . . Power Chain Reactions 6 | . . . 6 Alert | -11 -10 -10 -8 ------- Run | Yrd Mat Sub Mat Maximum Alert Level 2 | . 1 . 2 Low Security (%) 75 | 100 99 . 49 Level 1 11 | . . . 24 Level 2 12 | . . . 26 Level 3 . | . . . . Level 4 . | . . . . Level 5 . | . . . . High Security . | . . . . Max Security . | . . . . Peak Influence 501 | . 195 . 501 Initial . | . . . . Average 147 | . 89 . 216 Influence Increases 1293 | . 442 . 851 Destroy 0b10 Robot/C 780 | . 260 . 520 Destroy 0b10 Robot/NC 50 | . 20 . 30 Destroy Leader 170 | . 56 . 114 Disable Machine 105 | . 45 . 60 Destroy Structure 128 | . 61 . 67 Lose Combat Pursuer 60 | . . . 60 Influence Decreases 952 | . 320 122 510 Entered New Map 59 | . . 59 . Time Decay 670 | . 300 40 330 Lost Part 223 | . 20 23 180 Squads Dispatched 11 | . 3 . 8 Investigation . | . . . . Extermination . | . . . . Reinforcement 7 | . 3 . 4 Assault . | . . . . Garrison 4 | . . . 4 Intercept . | . . . . Searches Triggered . | . . . . Construction Impeded 1 | . . . 1 Haulers Reinforced . | . . . . Active Scanning Responses . | . . . . Cargo Convoy Interrupts . | . . . . Stealth | -11 -10 -10 -8 --------- Run | Yrd Mat Sub Mat Distress Signals 8 | . 2 . 6 Communications Jammed . | . . . . Distress Signals . | . . . . Times Spotted 72 | . 21 6 45 Peak Tracking Total 8 | . 7 4 8 Tactical Retreats 2 | . . . 2 Traps | -11 -10 -10 -8 ------- Run | Yrd Mat Sub Mat Traps Triggered 6 | . 5 . 1 Indirectly . | . . . . Trap Hack Attempts . | . . . . Triggered . | . . . . Disarmed . | . . . . Reprogrammed . | . . . . Reused . | . . . . Traps Extracted . | . . . . Installed . | . . . . Triggered . | . . . . Machines | -11 -10 -10 -8 ---------- Run | Yrd Mat Sub Mat Machines Disabled 7 | . 3 . 4 Max in Single Turn 2 | . 2 . 1 Machines Repaired . | . . . . Machines Dismantled . | . . . . Machines Sabotaged . | . . . . Overloaded Fab Kills . | . . . . Hacking | -11 -10 -10 -8 --------- Run | Yrd Mat Sub Mat Machines Accessed 1 | . . . 1 Terminals . | . . . . Fabricators . | . . . . Repair Stations . | . . . . Recycling Units . | . . . . Scanalyzers 1 | . . . 1 Garrison Access . | . . . . Total Hacks 2 | . . . 2 Successful 2 | . . . 2 Failed . | . . . . Catastrophic . | . . . . Database Lockouts . | . . . . Manual 1 | . 1 . . Terminals . | . . . . Fabricators . | . . . . Repair Stations . | . . . . Recycling Units . | . . . . Scanalyzers 2 | . . . 2 Garrison Access . | . . . . Terminal Hacks . | . . . . Fabricator Hacks . | . . . . Repair Station Hacks . | . . . . Recycling Unit Hacks . | . . . . Scanalyzer 2 | . . . 2 Insert Component 1 | . . . 1 Analyze 1 | . . . 1 Garrison Access Hacks . | . . . . Unauthorized Hacks . | . . . . Terminals . | . . . . Fabricators . | . . . . Repair Stations . | . . . . Recycling Units . | . . . . Scanalyzers . | . . . . Garrison Access . | . . . . Data Cores Recovered . | . . . . Used . | . . . . Hacking Detections . | . . . . Full Trace Events . | . . . . Feedback Events . | . . . . Feedback Blocked . | . . . . Robot Schematics Acquired . | . . . . Robots Built . | . . . . Authchips . | . . . . Time . | . . . . Total Robot Build Rating . | . . . . Part Schematics Acquired 1 | . . . 1 Parts Built . | . . . . Authchips . | . . . . Time . | . . . . Total Part Build Rating . | . . . . Part Studies Acquired . | . . . . Parts Repaired . | . . . . Time . | . . . . Parts Recycled . | . . . . Recycled Matter . | . . . . Retrieved Matter . | . . . . Retrieved Components . | . . . . Parts Scanalyzed 1 | . . . 1 Part Schematics Acquired 1 | . . . 1 Parts Damaged . | . . . . Bothacking | -11 -10 -10 -8 ------------ Run | Yrd Mat Sub Mat Used RIF Installer . | . . . . Robots Hacked . | . . . . Non-combat . | . . . . Combat . | . . . . Robot Hacks Applied . | . . . . Relay Couplers Released . | . . . . Fabnet Peak Effective % . | . . . . Robots Rewired . | . . . . Allies Hacked . | . . . . Hacks Repelled . | . . . . Allies | -11 -10 -10 -8 -------- Run | Yrd Mat Sub Mat Total Allies . | . . . . Largest Group . | . . . . Highest-Rated Group . | . . . . Highest-Rated Ally . | . . . . Total Orders . | . . . . Ally Attacks . | . . . . Total Damage . | . . . . Kills . | . . . . Allies Corrupted . | . . . . Allies Melted . | . . . . Intel | -11 -10 -10 -8 ------- Run | Yrd Mat Sub Mat Active Infowar (turns) 482 | . 216 . 266 Optics 266 | . . . 266 Terrain 216 | . 216 . . Robot Analysis Total . | . . . . Derelict Logs Recovered . | . . . . Drone Launches . | . . . . Drone Recoveries . | . . . . Exploration | -11 -10 -10 -8 ------------- Run | Yrd Mat Sub Mat Turns Passed 1850 | 61 795 199 795 Spaces Moved 811 | 42 380 117 272 Core 69 | 17 3 31 18 Treads 637 | 25 377 18 217 Legs 105 | . . 68 37 Wheels . | . . . . Hover . | . . . . Flight . | . . . . Fastest Speed 50 | 50 150 120 100 Average Speed 156 | 115 159 147 162 Slowest Speed 250 | 160 160 200 250 Overloaded Moves . | . . . . Propulsion Burnouts . | . . . . Robots Hopped . | . . . . Potential Cave-ins . | . . . . Cave-ins Triggered . | . . . . Exploration Rate (%) 23 | 3 50 10 32 Regions Visited 3 Branch Regions 1 Pre-discovered Areas . | . . . . Known Exits Taken . | . . . . Unknown Exits Taken 3 | 1 1 1 . Scrap Searched . | . . . . Spaces Dug . | . . . . Terrain Destroyed 161 | . 75 6 80 Melee . | . . . . Projectile 1 | . . . 1 AOE 160 | . 75 6 79 Terrain Rammed . | . . . . Walls Destroyed . | . . . . Machines Disabled . | . . . . Actions | -11 -10 -10 -8 --------- Run | Yrd Mat Sub Mat Total 1162 | 55 493 137 477 Wait 61 | . 6 . 55 Move 808 | 41 379 116 272 Hop . | . . . . Pick Up 67 | 8 30 7 22 Fast Attach . | . . . . Attach 34 | 6 10 5 13 Detach . | . . . . Swap 27 | . 9 1 17 Drop 29 | . 16 3 10 Fire 133 | . 42 5 86 Melee . | . . . . Ram . | . . . . Kick . | . . . . Crush 3 | . 1 . 2 Escape Stasis . | . . . . Rewire . | . . . . Trap . | . . . . Miscellaneous . | . . . . Route ------- -11/Scrapyard -10/Materials (discovered 3 exits: [*Mat] / [*Min] / [*Sub]) -10/Subcaves -8/Materials History --------- Turn | Location | Event 23 | -11/Scrapyard | Discovered new exit (range 16) 62 | -11/Scrapyard | Entered Materials 181 | -10/Materials | Discovered new exit (range 13) 330 | -10/Materials | Build established: Mutant 370 | -10/Materials | Discovered new exit (range 15) 541 | -10/Materials | Discovered new exit (range 3) 857 | -10/Materials | Entered Subcaves 858 | -10/Subcaves | Approached by a straggling Scientist 877 | -10/Subcaves | A Subdweller sparked back to life 877 | -10/Subcaves | A Subdweller sparked back to life 877 | -10/Subcaves | A Subdweller sparked back to life 887 | -10/Subcaves | Core integrity fell below 50% 1020 | -10/Subcaves | Discovered new exit (range 7) 1055 | -10/Subcaves | Ambushed by swarm of Subdwellers 1056 | -10/Subcaves | Entered Materials 1056 | -8/Materials | Evolved 4 slots: Utility x4 1133 | -8/Materials | Garrison activated, responded to threat 1481 | -8/Materials | Garrison activated, responded to threat 1550 | -8/Materials | Lost 3 parts (1p1n1w) 1606 | -8/Materials | Destroyed 7 combat bots 1792 | -8/Materials | Core integrity fell below 50% 1840 | -8/Materials | Core integrity fell below 20% 1851 | -8/Materials | Destroyed by S-10 Pest with Light Assault Rifle Last Messages --------------- 01770_ Core Shielding destroyed. 01770_ Beam Cannon destroyed. 01770_ K-01 Serf collects debris. 01783_ Ion Cannon destroyed. 01784_ R-06 Scavenger inserts Particle Gun into recycling unit. 01787_ R-06 Scavenger inserts Wheel into recycling unit. 01790_ R-06 Scavenger inserts Heat Sink into recycling unit. 01790_ Critical hit (Burn: +37). 01796_ Lgt. Nuclear Core destroyed. 01797_ Material Compactor disabled. 01802_ Lgt. Treads destroyed. 01806_ Hvy. Assault Rifle destroyed. 01808_ Sub. Optics destroyed. 01808_ G-50 Soldier destroyed. 01808_ K-01 Serf collects debris. 01813_ W-25 Informer sends out distress signal. 01823_ Hvy. Particle Gun destroyed. 01833_ Imp. Heat Sink destroyed. 01834_ Acquired Hardlight Generator. 01847_ Hacking Suite destroyed. Map ----- +----------------------------------------------------+ | ???????????????????????????????????? ????????????? | | ???????????????????????????????????? ????????????? | | ???????????????????????????????????? #???????????? | | ???????????????????????????????????? #???????????? | | ???????????????????????????????????# ###?????????? | | ??????????????????????????????????? ??????? ?? | | ??????????????????????????????????? ?????? ? | | ??????????????????????????????????? ?????? ?? | | ??????????????????????????????????? ??????? ?? | | ??????????????????????????????????? ??????? ??? | | ????????????????# ? ???????????????# #?????? ??? | | ???????????????!# ???????????????# #?????? ???? | | ??????????????? # ################ #?????? ???? | | ????????????????+ #????##+##### | | ????????????????# ###### % | | ????????????????# ! #### | | ????????????????# ! # "" | | ????????????????# """ % "" """ / "" | | ??????????????### """" """" """"" # | | ??????????????#"" """"" """"" """" # | | ??????????????#"Y[[ """" """"" """" [=# | | ??????????????#""[/ """ """ """ = # | | ????????????????# ] #^" | | ????????????????# # "" | | ????????????????#######/### ############### | | ?????????????????????# gg@#######??????????## #### | | ?????????????????????#Y"" #????????????????# | | ?????????????????????# T" #????????????????# | | ?????????????????????# ""s#????????????????# # | | ?????????????????????# Y #????????????????# # | | ?????????????????????# #????????????????# # = | | ?????????????????????# #????????????????# | | ?????????????????????# #????????????????## ### | | ?????????????????????# #????????????????# | | ?????????????????????######????????????????### ### | | ???????????????????????????????????????????? ?? | | ?????????????????????????????????????????? ?? | | ???????????????????????????????????????? ?? | | ???????????????????????????????????????#########?? | | ?????????????????????????????????????????????????? | | ?????????????????????????????????????????????????? | | ?????????????????????????????????????????????????? | | ?????????????????????????????????????????????????? | | ?????????????????????????????????????????????????? | | ?????????????????????????????????????????????????? | | ?????????????????????????????????????????????????? | | ?????????????????????????????????????????????????? | | ?????????????????????????????????????????????????? | | ?????????????????????????????????????????######### | | ?????????????????????????????????????????? | +----------------------------------------------------+ Best States ------------- Heat Dissipation 45 Energy Generation 15 Energy Capacity 250 Matter Stores 300 Matter Capacity 300 Sight Range 21 Terrain Scan Range 14 Terrain Scan Density 10 Core Shielding 20 Phase Shifting 5 Evasion (%) 55 Targeting Accuracy 6 Armor Integrity Analysis 30 Recoil Reduction 2 Offensive Hacking 10 Item Schematics ----------------- Particle Cannon | -8/Materials | Scanalyzed Robot Schematics ------------------ None Fabricated ------------ Nothing Repaired ---------- Nothing Studied --------- None Alien Tech Used ----------------- None Achievements -------------- That Tickles Troublemaker Challenges ------------ None Game ------ Seed FluxNuclearArachnoskeleton Manual? 0 Play Time 00:44:05 Cumulative 4.1 hours Start 2026.09.10 @ 17:49:46 End 2026.09.10 @ 18:33:48 Sessions 1 Manual Loads 0 Difficulty Rogue Special Mode None Game No. 7 Rogue 7 Adventurer 0 Explorer 0 Win Type - Total 0 Types 0/0/0/0/0/0/0/0/0/0 Lore% 3 Gallery% 6 Achievement% 6 Wizard Run 0 Options --------- Layout 0 ASCII 0 Keyboard 0 Movement Mouse Keybinds 0 Fullscreen 1 Font 24/Smallcaps Map View 56x25 Zoom Use 100% Tactical HUD 1 Map Filters NONE Filters NONE Steam 1 RUN: b3ac421e-93b7-488a-9fc5-edecce18dab7